[Event "98th Caplin Hastings Masters 2024-25"]
[Site "Hastings"]
[Date "2024.12.29"]
[Round "3.31"]
[White "Sasikumar, Srivathsan"]
[Black "White, Stuart A"]
[Result "1/2-1/2"]
[ECO "B73"]
[WhiteElo "1904"]
[BlackElo "2017"]
[Annotator "RC"]
[PlyCount "161"]
[EventDate "2024.12.23"]
[EventType "swiss"]
[EventCountry "ENG"]
[SourceTitle "playchess.com"]
[Source "ChessBase"]
[SourceQuality "1"]
[TimeControl "5400+30"]

1. e4 {[%emt 0:00:02]} c5 {[%emt 0:00:04]} 2. Nf3 {[%emt 0:00:25]} d6 {[%emt 0:00:05]} 3. d4 {[%emt 0:00:48]} cxd4 {[%emt 0:00:06]} 4. Nxd4 {[%emt 0:00:04]} Nf6 {[%emt 0:00:04]} 5. Nc3 {[%emt 0:00:04]} Nc6 {[%emt 0:00:04]} 6. Be2 {[%emt 0:05:41]} g6 {[%emt 0:01:17]} 7. Be3 {[%emt 0:01:20]} Bg7 {[%emt 0:00:08]} 8. O-O {[%emt 0:00:36]} O-O {[%emt 0:00:06]} 9. Qd2 {[%emt 0:02:20]} Ng4 {[%emt 0:02:44]} 10. Bxg4 {[%emt 0:01:38]} Bxg4 {[%emt 0:00:29]} 11. f3 {[%emt 0:05:12]} Bd7 {[%emt 0:00:54]} 12. Rad1 {[%emt 0:00:29]} a6 {[%emt 0:05:48]} 13. Nd5 {[%emt 0:06:09]} Ne5 {[%emt 0:09:24]} 14. b3 {[%emt 0:05:42]} b5 {[%emt 0:02:03]} 15. h3 {[%emt 0:03:38]} Rc8 {[%emt 0:05:18]} 16. f4 {[%emt 0:04:22]} Nc6 {[%emt 0:00:33]} 17. f5 {[%emt 0:00:35]} Ne5 {[%emt 0:15:50]} 18. Bh6 {[%emt 0:06:18]} f6 {[%emt 0:18:08]} 19. Bxg7 {[%emt 0:00:54]} Kxg7 {[%emt 0:00:04]} 20. Nf4 {[%emt 0:00:15]} Qb6 {[%emt 0:00:06]} 21. Kh1 {[%emt 0:06:02]} Rh8 {[%emt 0:03:15]} 22. Nfe6+ {[%emt 0:15:09]} Bxe6 {[%emt 0:02:36]} 23. Nxe6+ {[%emt 0:00:05]} Kf7 {[%emt 0:00:04]} 24. Qd5 {[%emt 0:10:14]} Ke8 {[%emt 0:03:13]} 25. Nf4 {[%emt 0:00:46]} Qc6 {[%emt 0:03:23]} 26. Qe6 {[%emt 0:00:23]} Qd7 {[%emt 0:00:32]} 27. Rxd6 {[%emt 0:00:25]} Qxe6 {[%emt 0:00:39]} 28. Rxe6 {[%emt 0:00:06]} Rxc2 {[%emt 0:01:38]} 29. Rxa6 {[%emt 0:03:52]} Kf7 {[%emt 0:00:30]} 30. Nd5 {[%emt 0:00:54]} gxf5 {[%emt 0:01:14]} 31. exf5 {[%emt 0:06:46]} Rg8 {[%emt 0:01:50]} 32. Nf4 {[%emt 0:08:27]} Rd8 {[%emt 0:02:51]} 33. Rb6 {[%emt 0:01:42]} Rxa2 {[%emt 0:00:48]} 34. Rxb5 {[%emt 0:00:11]} Rdd2 {[%emt 0:00:37]} 35. Rb8 {[%emt 0:01:45]} Rab2 {[%emt 0:08:18]} 36. b4 {[%emt 0:02:22]} Nc6 {[%emt 0:00:51]} 37. Rh8 {[%emt 0:01:37]} Kg7 {[%emt 0:01:23]} 38. Rc8 {[%emt 0:00:06]} Nd4 {[%emt 0:12:33]} 39. Rc5 {[%emt 0:02:04]} Rxb4 {[%emt 0:00:00]} 40. Re1 {[%emt 0:00:10]} Kf7 {[%emt 0:00:00]} 41. Rd5 {[%emt 0:00:43]} Nb3 {[%emt 0:00:00]} 42. Rxd2 {[%emt 0:00:33]} Nxd2 {[%emt 0:00:00]} 43. Ne6 {[%emt 0:00:30]} Ne4 {[%emt 0:00:00]} 44. Ra1 {[%emt 0:00:30]} Ng3+ {[%emt 0:00:00]} 45. Kh2 {[%emt 0:00:04]} Nxf5 {[%emt 0:00:00]} 46. Nc5 {[%emt 0:00:45]} Rb2 {[%emt 0:00:23]} 47. Nd3 {[%emt 0:00:38]} Rd2 {[%emt 0:00:18]} 48. Ne1 {[%emt 0:00:04]} Ne3 {[%emt 0:00:54]} 49. Kg3 {[%emt 0:00:18]} Rd1 {[%emt 0:00:25]} 50. Rxd1 {[%emt 0:00:08]} Nxd1 {[%emt 0:00:02]} 51. Nd3 {[%emt 0:00:43]} Nc3 {[%emt 0:00:15]} 52. Kf4 {[%emt 0:00:46]} e6 {[%emt 0:00:47]} 53. g4 {[%emt 0:00:21]} Nd5+ {[%emt 0:00:47]} 54. Kf3 {[%emt 0:00:15]} Kg6 {[%emt 0:01:22]} 55. Nc5 {[%emt 0:00:53]} Nc7 {[%emt 0:01:03]} 56. Ne4 {[%emt 0:00:52]} f5 {[%emt 0:01:11]} 57. gxf5+ {[%emt 0:00:39]} exf5 {[%emt 0:00:07]} 58. Nc3 {[%emt 0:00:21]} Ne6 {[%emt 0:00:36]} 59. Nd5 {[%emt 0:00:17]} Kg5 {[%emt 0:00:25]} 60. Ne7 {[%emt 0:00:52]} Kf6 {[%emt 0:01:19]} 61. Nc6 {[%emt 0:00:14]} Kg5 {[%emt 0:00:39]} 62. Ne7 {[%emt 0:00:27]} Ng7 {[%emt 0:00:23]} 63. Kg3 {[%emt 0:00:25]} h5 {[%emt 0:00:28]} 64. Nd5 {[%emt 0:00:31]} h4+ {[%emt 0:00:56]} 65. Kf3 {[%emt 0:00:09]} Ne6 {[%emt 0:00:04]} 66. Ke3 {[%emt 0:00:47]} f4+ {[%emt 0:00:18]} 67. Ke4 {[%emt 0:00:25]} Nc5+ {[%emt 0:00:15]} 68. Kf3 {[%emt 0:00:11]} Nd3 {[%emt 0:00:35]} 69. Nc3 {[%emt 0:01:28]} Kf5 {[%emt 0:00:07]} 70. Ne2 {[%emt 0:00:29]} Ne5+ {[%emt 0:00:06]} 71. Kf2 {[%emt 0:00:16]} f3 {[%emt 0:00:46]} 72. Nc3 {[%emt 0:00:28]} Kf4 {[%emt 0:00:26]} 73. Nd5+ {[%emt 0:00:30]} Ke4 {[%emt 0:00:16]} 74. Nf6+ {[%emt 0:00:03]} Kd4 {[%emt 0:00:56]} 75. Nh7 {[%emt 0:01:07]} Ke4 {[%emt 0:00:53]} 76. Nf6+ {[%emt 0:00:05]} Kf4 {[%emt 0:01:02]} 77. Nd5+ {[%emt 0:00:11]} Kf5 {[%emt 0:00:03]} 78. Ke3 {[%emt 0:00:41]} Ke6 {[%emt 0:00:50]} 79. Nc3 {[%emt 0:00:45]} Kf6 {[%emt 0:00:34]} 80. Ne4+ {[%emt 0:00:22]} Kf5 {[%emt 0:00:15]} 81. Nd2 {[%emt 0:00:09]} 1/2-1/2

[Event "98th Caplin Hastings Masters 2024-25"]
[Site "Hastings"]
[Date "2024.12.29"]
[Round "3.32"]
[White "Rayner, Francis"]
[Black "Flynn, David"]
[Result "1/2-1/2"]
[ECO "B37"]
[WhiteElo "2013"]
[BlackElo "1834"]
[Annotator "NA RC"]
[PlyCount "62"]
[EventDate "2024.12.23"]
[EventType "swiss"]
[EventCountry "ENG"]
[SourceTitle "playchess.com"]
[Source "ChessBase"]
[SourceQuality "1"]
[TimeControl "5400+30"]

1. e4 {[%emt 0:04:11]} c5 {[%emt 0:00:02]} 2. Nf3 {[%emt 0:00:26]} Nc6 {[%emt 0:00:04]} 3. d4 {[%emt 0:00:58]} cxd4 {[%emt 0:00:54]} 4. Nxd4 {[%emt 0:00:02]} g6 {[%emt 0:00:07]} 5. c4 {[%emt 0:00:58]} Nf6 {[%emt 0:00:37]} 6. Nc3 {[%emt 0:00:27]} d6 {[%emt 0:00:31]} 7. Nc2 {[%emt 0:00:47]} Bg7 {[%emt 0:10:23]} 8. Be2 {[%emt 0:00:23]} Nd7 {[%emt 0:02:12]} 9. Be3 {[%emt 0:03:47]} Bxc3+ {[%emt 0:04:03]} 10. bxc3 {[%emt 0:00:02]} Qa5 {[%emt 0:01:58]} 11. Qd2 {[%emt 0:02:30]} Nc5 {[%emt 0:03:25]} 12. f3 {[%emt 0:01:45]} Na4 {[%emt 0:10:05]} 13. Nb4 {[%emt 0:01:59]} Be6 {[%emt 0:05:26]} 14. Rb1 {[%emt 0:07:36]} Nxb4 {[%emt 0:10:54]} 15. cxb4 {[%emt 0:00:28]} Qc7 {[%emt 0:00:31]} 16. O-O {[%emt 0:02:24]} O-O {[%emt 0:02:26]} 17. Rfc1 {[%emt 0:05:27]} Nb6 {[%emt 0:02:03]} 18. Qb2 {[%emt 0:12:30]} Rfc8 {[%emt 0:03:37]} 19. c5 {[%emt 0:04:34]} Nd7 {[%emt 0:06:36]} 20. Bf4 {[%emt 0:03:45]} Ne5 {[%emt 0:04:43]} 21. Kf1 {[%emt 0:04:52]} f6 {[%emt 0:00:52]} 22. a4 {[%emt 0:06:54]} a6 {[%emt 0:02:18]} 23. cxd6 {[%emt 0:01:12]} Qxd6 {[%emt 0:00:30]} 24. Rd1 {[%emt 0:01:48]} Qb8 {[%emt 0:01:18]} 25. Bg3 {[%emt 0:14:18]} Nc4 {[%emt 0:09:10]} 26. Qd4 {[%emt 0:02:12]} Qa7 {[%emt 0:00:03]} 27. Qxa7 {[%emt 0:00:57]} Rxa7 {[%emt 0:00:03]} 28. Bf2 {[%emt 0:00:17]} Raa8 {[%emt 0:00:11]} 29. a5 {[%emt 0:01:50]} Na3 {[%emt 0:08:34]} 30. Rb2 {[%emt 0:03:17]} Nc4 {[%emt 0:01:18]} 31. Rbb1 {[%emt 0:00:18]} Na3 {[%emt 0:00:08]} 1/2-1/2

[Event "98th Caplin Hastings Masters 2024-25"]
[Site "Hastings"]
[Date "2024.12.29"]
[Round "3.33"]
[White "Rastogi, Nayan Keats"]
[Black "Malinovskii, Ilia"]
[Result "1/2-1/2"]
[ECO "C19"]
[WhiteElo "1892"]
[BlackElo "2003"]
[Annotator "RC"]
[PlyCount "123"]
[EventDate "2024.12.23"]
[EventType "swiss"]
[EventCountry "ENG"]
[SourceTitle "playchess.com"]
[Source "ChessBase"]
[SourceQuality "1"]
[TimeControl "5400+30"]

1. e4 {[%emt 0:00:02]} e6 {[%emt 0:00:05]} 2. d4 {[%emt 0:00:03]} d5 {[%emt 0:00:05]} 3. Nc3 {[%emt 0:00:05]} Bb4 {[%emt 0:00:04]} 4. e5 {[%emt 0:00:04]} c5 {[%emt 0:00:11]} 5. a3 {[%emt 0:00:03]} Bxc3+ {[%emt 0:00:05]} 6. bxc3 {[%emt 0:00:07]} Ne7 {[%emt 0:00:07]} 7. h4 {[%emt 0:00:04]} Qc7 {[%emt 0:00:28]} 8. h5 {[%emt 0:00:21]} h6 {[%emt 0:00:06]} 9. Nf3 {[%emt 0:00:10]} Bd7 {[%emt 0:07:22]} 10. Bd2 {[%emt 0:04:39]} Ba4 {[%emt 0:02:35]} 11. Bd3 {[%emt 0:00:59]} c4 {[%emt 0:00:53]} 12. Be2 {[%emt 0:00:11]} Nd7 {[%emt 0:00:55]} 13. Nh4 {[%emt 0:02:52]} O-O-O {[%emt 0:08:56]} 14. f4 {[%emt 0:03:06]} Rdg8 {[%emt 0:08:05]} 15. O-O {[%emt 0:10:10]} g6 {[%emt 0:03:09]} 16. hxg6 {[%emt 0:05:27]} fxg6 {[%emt 0:04:15]} 17. Bg4 {[%emt 0:02:52]} Nf5 {[%emt 0:01:32]} 18. Nxf5 {[%emt 0:02:10]} gxf5 {[%emt 0:00:18]} 19. Bh5 {[%emt 0:02:26]} Nf8 {[%emt 0:01:34]} 20. Be1 {[%emt 0:02:51]} Qg7 {[%emt 0:03:50]} 21. Qd2 {[%emt 0:02:13]} Qe7 {[%emt 0:00:24]} 22. Rf3 {[%emt 0:09:02]} Be8 {[%emt 0:05:43]} 23. Bxe8 {[%emt 0:01:54]} Qxe8 {[%emt 0:00:05]} 24. Rh3 {[%emt 0:02:32]} Rg4 {[%emt 0:01:41]} 25. Kh2 {[%emt 0:04:27]} Ng6 {[%emt 0:03:13]} 26. Bg3 {[%emt 0:05:53]} h5 {[%emt 0:03:15]} 27. Rf1 {[%emt 0:00:35]} Rg8 {[%emt 0:08:25]} 28. Be1 {[%emt 0:03:20]} h4 {[%emt 0:00:56]} 29. g3 {[%emt 0:06:23]} Qe7 {[%emt 0:02:12]} 30. gxh4 {[%emt 0:01:28]} Nxh4 {[%emt 0:06:55]} 31. Bxh4 {[%emt 0:00:43]} Rxh4 {[%emt 0:00:10]} 32. Rff3 {[%emt 0:01:19]} Rhg4 {[%emt 0:03:54]} 33. Rfg3 {[%emt 0:01:49]} Rxg3 {[%emt 0:02:46]} 34. Rxg3 {[%emt 0:00:07]} Rxg3 {[%emt 0:00:05]} 35. Kxg3 {[%emt 0:00:08]} Qxa3 {[%emt 0:00:04]} 36. Kh4 {[%emt 0:02:47]} Qe7+ {[%emt 0:02:24]} 37. Kg3 {[%emt 0:00:31]} Qg7+ {[%emt 0:00:18]} 38. Kf2 {[%emt 0:01:09]} Qg4 {[%emt 0:00:08]} 39. Qc1 {[%emt 0:00:50]} a6 {[%emt 0:01:31]} 40. Qa3 {[%emt 0:00:51]} Qxf4+ {[%emt 0:00:06]} 41. Ke2 {[%emt 0:00:09]} Qg4+ {[%emt 0:01:16]} 42. Kf2 {[%emt 0:00:37]} Qh4+ {[%emt 0:00:09]} 43. Ke2 {[%emt 0:00:15]} Qd8 {[%emt 0:00:13]} 44. Qc5+ {[%emt 0:00:29]} Kb8 {[%emt 0:00:09]} 45. Kf3 {[%emt 0:00:31]} Qc7 {[%emt 0:00:28]} 46. Qf8+ {[%emt 0:00:56]} Ka7 {[%emt 0:00:32]} 47. Qg8 {[%emt 0:00:20]} Qe7 {[%emt 0:00:25]} 48. Qc8 {[%emt 0:00:45]} a5 {[%emt 0:00:27]} 49. Qh8 {[%emt 0:00:50]} a4 {[%emt 0:00:16]} 50. Qh6 {[%emt 0:00:15]} a3 {[%emt 0:00:54]} 51. Qf6 {[%emt 0:00:18]} Qd7 {[%emt 0:00:14]} 52. Qf8 {[%emt 0:00:11]} b6 {[%emt 0:05:57]} 53. Qxa3+ {[%emt 0:00:10]} Kb7 {[%emt 0:00:06]} 54. Qf8 {[%emt 0:01:00]} Qh7 {[%emt 0:01:20]} 55. Kg3 {[%emt 0:01:22]} Qg6+ {[%emt 0:08:12]} 56. Kf2 {[%emt 0:00:37]} f4 {[%emt 0:02:22]} 57. Qe7+ {[%emt 0:00:51]} Kc8 {[%emt 0:00:30]} 58. Qf8+ {[%emt 0:00:13]} Kd7 {[%emt 0:00:21]} 59. Qd6+ {[%emt 0:00:14]} Ke8 {[%emt 0:00:08]} 60. Qc6+ {[%emt 0:04:19]} Kf8 {[%emt 0:00:28]} 61. Qd6+ {[%emt 0:00:22]} Kg8 {[%emt 0:01:18]} 62. Qd8+ {[%emt 0:00:56]} 1/2-1/2

[Event "98th Caplin Hastings Masters 2024-25"]
[Site "Hastings"]
[Date "2024.12.29"]
[Round "3.34"]
[White "Stokes, Stephen"]
[Black "Zhang, Kendrick Botong"]
[Result "0-1"]
[ECO "D02"]
[WhiteElo "1866"]
[BlackElo "1979"]
[Annotator "RC"]
[PlyCount "108"]
[EventDate "2024.12.23"]
[EventType "swiss"]
[EventCountry "ENG"]
[SourceTitle "playchess.com"]
[Source "ChessBase"]
[SourceQuality "1"]
[TimeControl "5400+30"]

1. d4 {[%emt 0:00:03]} Nf6 {[%emt 0:00:05]} 2. Nf3 {[%emt 0:00:10]} g6 {[%emt 0:00:08]} 3. Nbd2 {[%emt 0:00:13]} d5 {[%emt 0:00:55]} 4. e3 {[%emt 0:00:28]} c5 {[%emt 0:04:45]} 5. c3 {[%emt 0:00:30]} cxd4 {[%emt 0:02:27]} 6. exd4 {[%emt 0:01:59]} Bg7 {[%emt 0:02:37]} 7. Bb5+ {[%emt 0:03:15]} Bd7 {[%emt 0:03:09]} 8. Qe2 {[%emt 0:02:25]} O-O {[%emt 0:05:05]} 9. O-O {[%emt 0:02:21]} a6 {[%emt 0:05:00]} 10. Bxd7 {[%emt 0:01:13]} Nbxd7 {[%emt 0:00:38]} 11. Re1 {[%emt 0:00:55]} e6 {[%emt 0:02:17]} 12. Ne5 {[%emt 0:01:33]} Nxe5 {[%emt 0:01:50]} 13. Qxe5 {[%emt 0:00:52]} Ne4 {[%emt 0:09:44]} 14. Qf4 {[%emt 0:03:41]} Nxd2 {[%emt 0:04:09]} 15. Bxd2 {[%emt 0:01:40]} b5 {[%emt 0:00:21]} 16. a3 {[%emt 0:16:39]} Re8 {[%emt 0:01:35]} 17. Re2 {[%emt 0:05:04]} f6 {[%emt 0:06:45]} 18. Rae1 {[%emt 0:02:25]} e5 {[%emt 0:00:56]} 19. Qh4 {[%emt 0:04:03]} e4 {[%emt 0:03:55]} 20. Bh6 {[%emt 0:06:25]} Bxh6 {[%emt 0:05:27]} 21. Qxh6 {[%emt 0:00:07]} f5 {[%emt 0:00:12]} 22. h4 {[%emt 0:10:36]} Qf6 {[%emt 0:01:55]} 23. h5 {[%emt 0:04:55]} Qg7 {[%emt 0:15:38]} 24. Qf4 {[%emt 0:02:57]} Qf6 {[%emt 0:01:28]} 25. Qh6 {[%emt 0:00:37]} f4 {[%emt 0:03:13]} 26. f3 {[%emt 0:03:59]} Qf5 {[%emt 0:00:35]} 27. fxe4 {[%emt 0:05:56]} Rxe4 {[%emt 0:01:31]} 28. hxg6 {[%emt 0:00:49]} hxg6 {[%emt 0:00:22]} 29. Qh3 {[%emt 0:00:54]} Qxh3 {[%emt 0:04:55]} 30. gxh3 {[%emt 0:00:06]} Rae8 {[%emt 0:00:29]} 31. Kf2 {[%emt 0:03:19]} Rxe2+ {[%emt 0:06:11]} 32. Rxe2 {[%emt 0:00:13]} Rxe2+ {[%emt 0:00:18]} 33. Kxe2 {[%emt 0:00:12]} g5 {[%emt 0:00:07]} 34. Kf3 {[%emt 0:01:28]} Kf7 {[%emt 0:00:14]} 35. b3 {[%emt 0:05:31]} a5 {[%emt 0:03:01]} 36. a4 {[%emt 0:04:56]} bxa4 {[%emt 0:00:18]} 37. bxa4 {[%emt 0:00:07]} Kf6 {[%emt 0:00:04]} 38. Kg4 {[%emt 0:03:34]} Kg6 {[%emt 0:00:09]} 39. Kf3 {[%emt 0:02:45]} Kf5 {[%emt 0:00:07]} 40. Kf2 {[%emt 0:00:20]} Ke4 {[%emt 0:00:43]} 41. Ke2 {[%emt 0:00:07]} f3+ {[%emt 0:01:17]} 42. Kf2 {[%emt 0:00:49]} Kf4 {[%emt 0:00:07]} 43. c4 {[%emt 0:00:24]} dxc4 {[%emt 0:00:09]} 44. d5 {[%emt 0:00:07]} Ke5 {[%emt 0:01:06]} 45. d6 {[%emt 0:00:30]} Kxd6 {[%emt 0:00:08]} 46. Kxf3 {[%emt 0:00:04]} Kd5 {[%emt 0:00:06]} 47. Ke3 {[%emt 0:00:19]} Ke5 {[%emt 0:00:07]} 48. Kd2 {[%emt 0:00:24]} Kd4 {[%emt 0:00:28]} 49. Kc2 {[%emt 0:00:13]} c3 {[%emt 0:00:04]} 50. Kc1 {[%emt 0:00:20]} Kd3 {[%emt 0:00:11]} 51. Kd1 {[%emt 0:00:07]} c2+ {[%emt 0:00:10]} 52. Kc1 {[%emt 0:00:05]} Kc3 {[%emt 0:00:04]} 53. h4 {[%emt 0:00:14]} g4 {[%emt 0:00:02]} 54. h5 {[%emt 0:00:22]} g3 {[%emt 0:00:03]} 0-1

[Event "98th Caplin Hastings Masters 2024-25"]
[Site "Hastings"]
[Date "2024.12.29"]
[Round "3.35"]
[White "Kennedy, Craig"]
[Black "Suez-Panama, Gilles"]
[Result "1-0"]
[ECO "C02"]
[WhiteElo "1851"]
[BlackElo "1979"]
[Annotator "RC"]
[PlyCount "139"]
[EventDate "2024.12.23"]
[EventType "swiss"]
[EventCountry "ENG"]
[SourceTitle "playchess.com"]
[Source "ChessBase"]
[SourceQuality "1"]
[TimeControl "5400+30"]

1. e4 {[%emt 0:00:06]} e6 {[%emt 0:00:57]} 2. d4 {[%emt 0:00:06]} d5 {[%emt 0:00:06]} 3. e5 {[%emt 0:00:03]} c5 {[%emt 0:00:08]} 4. c3 {[%emt 0:00:04]} Nc6 {[%emt 0:00:05]} 5. Nf3 {[%emt 0:00:06]} Bd7 {[%emt 0:01:37]} 6. Bd3 {[%emt 0:00:09]} Rc8 {[%emt 0:01:34]} 7. a3 {[%emt 0:02:45]} c4 {[%emt 0:04:04]} 8. Bc2 {[%emt 0:00:12]} Na5 {[%emt 0:00:15]} 9. O-O {[%emt 0:00:13]} Be7 {[%emt 0:01:19]} 10. Be3 {[%emt 0:08:03]} Bc6 {[%emt 0:03:02]} 11. Nbd2 {[%emt 0:00:14]} Qd7 {[%emt 0:00:44]} 12. h4 {[%emt 0:06:02]} h6 {[%emt 0:03:21]} 13. h5 {[%emt 0:00:26]} b5 {[%emt 0:02:45]} 14. Nh2 {[%emt 0:00:32]} Kd8 {[%emt 0:02:08]} 15. Qg4 {[%emt 0:02:23]} Bf8 {[%emt 0:00:18]} 16. f4 {[%emt 0:00:39]} f5 {[%emt 0:02:58]} 17. exf6 {[%emt 0:05:58]} Nxf6 {[%emt 0:00:28]} 18. Qh3 {[%emt 0:00:16]} Bd6 {[%emt 0:04:41]} 19. Nhf3 {[%emt 0:02:15]} Qe7 {[%emt 0:01:26]} 20. Rae1 {[%emt 0:02:07]} Be8 {[%emt 0:03:31]} 21. g4 {[%emt 0:03:26]} Kc7 {[%emt 0:06:31]} 22. Ne5 {[%emt 0:01:25]} Nc6 {[%emt 0:03:13]} 23. Bf2 {[%emt 0:03:59]} Bxe5 {[%emt 0:03:26]} 24. fxe5 {[%emt 0:02:12]} Nh7 {[%emt 0:02:56]} 25. Bh4 {[%emt 0:02:59]} Ng5 {[%emt 0:02:30]} 26. Qe3 {[%emt 0:01:43]} Nd8 {[%emt 0:07:22]} 27. Bxg5 {[%emt 0:03:28]} hxg5 {[%emt 0:00:48]} 28. Nf3 {[%emt 0:00:15]} Nf7 {[%emt 0:03:15]} 29. Kg2 {[%emt 0:00:09]} Kd7 {[%emt 0:04:16]} 30. Kg3 {[%emt 0:00:22]} a5 {[%emt 0:02:36]} 31. Bg6 {[%emt 0:00:33]} Nh6 {[%emt 0:01:48]} 32. Bxe8+ {[%emt 0:04:29]} Rcxe8 {[%emt 0:00:39]} 33. Qxg5 {[%emt 0:00:17]} Qxg5 {[%emt 0:01:53]} 34. Nxg5 {[%emt 0:00:08]} b4 {[%emt 0:03:59]} 35. axb4 {[%emt 0:00:38]} axb4 {[%emt 0:00:06]} 36. Nf7 {[%emt 0:01:59]} Nxf7 {[%emt 0:01:33]} 37. Rxf7+ {[%emt 0:00:06]} Re7 {[%emt 0:00:04]} 38. Rxe7+ {[%emt 0:00:20]} Kxe7 {[%emt 0:00:05]} 39. Ra1 {[%emt 0:00:20]} Rb8 {[%emt 0:00:16]} 40. g5 {[%emt 0:03:27]} bxc3 {[%emt 0:00:44]} 41. bxc3 {[%emt 0:00:04]} Rb3 {[%emt 0:01:50]} 42. Rc1 {[%emt 0:00:06]} Rb2 {[%emt 0:00:27]} 43. Rf1 {[%emt 0:01:22]} Rc2 {[%emt 0:01:53]} 44. Rf3 {[%emt 0:00:06]} Rc1 {[%emt 0:00:27]} 45. Kg4 {[%emt 0:00:26]} Rg1+ {[%emt 0:00:38]} 46. Rg3 {[%emt 0:00:13]} Rh1 {[%emt 0:00:49]} 47. g6 {[%emt 0:00:38]} Rf1 {[%emt 0:02:48]} 48. Kg5 {[%emt 0:02:08]} Rf5+ {[%emt 0:01:00]} 49. Kg4 {[%emt 0:00:07]} Rf1 {[%emt 0:00:12]} 50. Rh3 {[%emt 0:03:57]} Rg1+ {[%emt 0:02:09]} 51. Kh4 {[%emt 0:00:10]} Rf1 {[%emt 0:03:48]} 52. h6 {[%emt 0:03:26]} gxh6 {[%emt 0:00:17]} 53. Kh5 {[%emt 0:00:08]} Kf8 {[%emt 0:00:23]} 54. Kxh6 {[%emt 0:00:29]} Kg8 {[%emt 0:00:07]} 55. Rh2 {[%emt 0:02:00]} Rf3 {[%emt 0:01:37]} 56. Ra2 {[%emt 0:09:09]} Rh3+ {[%emt 0:00:11]} 57. Kg5 {[%emt 0:00:05]} Rxc3 {[%emt 0:00:27]} 58. Kf6 {[%emt 0:00:49]} Rf3+ {[%emt 0:00:11]} 59. Kxe6 {[%emt 0:00:07]} Kg7 {[%emt 0:00:12]} 60. Kxd5 {[%emt 0:00:11]} c3 {[%emt 0:00:08]} 61. Kc4 {[%emt 0:00:18]} Kxg6 {[%emt 0:00:22]} 62. Rc2 {[%emt 0:00:06]} Kf5 {[%emt 0:00:33]} 63. Rxc3 {[%emt 0:00:13]} Rf1 {[%emt 0:00:34]} 64. Kd5 {[%emt 0:00:08]} Rf2 {[%emt 0:01:01]} 65. Kd6 {[%emt 0:01:00]} Rh2 {[%emt 0:04:07]} 66. d5 {[%emt 0:00:17]} Ra2 {[%emt 0:00:49]} 67. e6 {[%emt 0:00:20]} Kf6 {[%emt 0:01:22]} 68. Kd7 {[%emt 0:02:01]} Ra7+ {[%emt 0:01:12]} 69. Rc7 {[%emt 0:00:10]} Rxc7+ {[%emt 0:00:31]} 70. Kxc7 {[%emt 0:00:06]} 1-0

[Event "98th Caplin Hastings Masters 2024-25"]
[Site "Hastings"]
[Date "2024.12.29"]
[Round "3.36"]
[White "Sciupokas, Arunas"]
[Black "Jacobs, Simon"]
[Result "1/2-1/2"]
[ECO "B13"]
[WhiteElo "1969"]
[BlackElo "1873"]
[Annotator "NA RC"]
[PlyCount "58"]
[EventDate "2024.12.23"]
[EventType "swiss"]
[EventCountry "ENG"]
[SourceTitle "playchess.com"]
[Source "ChessBase"]
[SourceQuality "1"]
[TimeControl "5400+30"]

1. e4 {[%emt 0:00:09]} c6 {[%emt 0:00:06]} 2. d4 {[%emt 0:00:13]} d5 {[%emt 0:00:06]} 3. exd5 {[%emt 0:00:22]} cxd5 {[%emt 0:00:08]} 4. c4 {[%emt 0:00:08]} Nf6 {[%emt 0:00:23]} 5. Nc3 {[%emt 0:00:22]} Nc6 {[%emt 0:00:13]} 6. Nf3 {[%emt 0:00:38]} a6 {[%emt 0:00:13]} 7. c5 {[%emt 0:04:13]} Bg4 {[%emt 0:03:29]} 8. Be2 {[%emt 0:01:43]} e6 {[%emt 0:01:43]} 9. O-O {[%emt 0:08:14]} Be7 {[%emt 0:01:11]} 10. Bf4 {[%emt 0:03:55]} O-O {[%emt 0:03:31]} 11. h3 {[%emt 0:09:07]} Bxf3 {[%emt 0:00:09]} 12. Bxf3 {[%emt 0:00:15]} Nd7 {[%emt 0:00:47]} 13. Rc1 {[%emt 0:06:12]} Bf6 {[%emt 0:02:19]} 14. Ne2 {[%emt 0:05:36]} Qa5 {[%emt 0:05:26]} 15. a3 {[%emt 0:02:38]} Rfc8 {[%emt 0:06:47]} 16. Rc3 {[%emt 0:09:02]} Qd8 {[%emt 0:09:00]} 17. b4 {[%emt 0:00:58]} b5 {[%emt 0:06:23]} 18. Rb3 {[%emt 0:14:49]} Ndb8 {[%emt 0:04:59]} 19. Qd3 {[%emt 0:03:11]} Na7 {[%emt 0:01:05]} 20. Ng3 {[%emt 0:07:18]} Nbc6 {[%emt 0:01:33]} 21. Be3 {[%emt 0:02:25]} g6 {[%emt 0:01:28]} 22. Ne2 {[%emt 0:01:14]} Rab8 {[%emt 0:02:03]} 23. g3 {[%emt 0:06:51]} Qf8 {[%emt 0:08:44]} 24. Qd2 {[%emt 0:01:53]} Rb7 {[%emt 0:01:56]} 25. Bh6 {[%emt 0:00:50]} Bg7 {[%emt 0:00:11]} 26. Bxg7 {[%emt 0:00:55]} Qxg7 {[%emt 0:00:03]} 27. Qf4 {[%emt 0:01:56]} Rd8 {[%emt 0:04:01]} 28. Rd1 {[%emt 0:02:04]} Ne7 {[%emt 0:01:30]} 29. Bg2 {[%emt 0:02:56]} Nac6 {[%emt 0:00:31]} 1/2-1/2

[Event "98th Caplin Hastings Masters 2024-25"]
[Site "Hastings"]
[Date "2024.12.29"]
[Round "3.37"]
[White "Rubeck, Jonathan"]
[Black "Ashton, Alannah"]
[Result "1-0"]
[ECO "B22"]
[WhiteElo "1824"]
[BlackElo "1953"]
[Annotator "NA RC"]
[PlyCount "28"]
[EventDate "2024.12.23"]
[EventType "swiss"]
[EventCountry "ENG"]
[SourceTitle "playchess.com"]
[Source "ChessBase"]
[SourceQuality "1"]
[TimeControl "5400+30"]

1. e4 {[%emt 0:00:01]} c5 {[%emt 0:00:03]} 2. c3 {[%emt 0:00:42]} d5 {[%emt 0:00:05]} 3. exd5 {[%emt 0:00:28]} Qxd5 {[%emt 0:00:04]} 4. d4 {[%emt 0:00:07]} Nc6 {[%emt 0:00:04]} 5. Nf3 {[%emt 0:00:17]} Bf5 {[%emt 0:00:13]} 6. Be2 {[%emt 0:02:59]} cxd4 {[%emt 0:04:26]} 7. cxd4 {[%emt 0:00:36]} Bxb1 {[%emt 0:02:57]} 8. Rxb1 {[%emt 0:00:17]} O-O-O {[%emt 0:05:45]} 9. O-O {[%emt 0:01:25]} e6 {[%emt 0:07:31]} 10. Be3 {[%emt 0:02:13]} Nf6 {[%emt 0:00:46]} 11. Qa4 {[%emt 1:26:55]} Kb8 {[%emt 0:08:27]} 12. Rfc1 {[%emt 0:00:00]} Qa5 {[%emt 0:06:05]} 13. Qxa5 {[%emt 0:00:00]} Nxa5 {[%emt 0:00:10]} 14. Ne5 {[%emt 0:00:00]} Rg8 {[%emt 0:08:53]} 1-0